[Event "17th Prague Open 2018"]
[Site "Prague"]
[Date "2018.01.14"]
[Round "4"]
[White "Kaasen, Tor Fredrik"]
[Black "Nimmy, A G"]
[Result "1/2-1/2"]
[ECO "B51"]
[WhiteElo "2340"]
[BlackElo "2109"]
[Annotator "ChessBase"]
[PlyCount "119"]
[EventDate "2018.??.??"]
[EventType "swiss"]
[EventCountry "CZE"]
[SourceTitle "playchess.com"]
[Source "ChessBase"]
[SourceQuality "1"]
[TimeControl "40/5400+30:1800+30"]

1. e4 {[%emt 0:05:37]} c5 {[%emt 0:00:07]} 2. Nf3 {[%emt 0:00:13]} d6 {[%emt 0:00:03]} 3. Bb5+ {[%emt 0:00:04]} Nd7 {[%emt 0:00:04]} 4. O-O {[%emt 0:00:06]} a6 {[%emt 0:00:08]} 5. Bd3 {[%emt 0:00:04]} Ngf6 {[%emt 0:00:53]} 6. Re1 {[%emt 0:00:27]} e5 {[%emt 0:01:09]} 7. c3 {[%emt 0:00:58]} Be7 {[%emt 0:00:47]} 8. Bc2 {[%emt 0:00:15]} O-O {[%emt 0:01:37]} 9. a4 {[%emt 0:02:47]} b6 {[%emt 0:08:06]} 10. d4 {[%emt 0:01:24]} Bb7 {[%emt 0:01:10]} 11. d5 {[%emt 0:00:55]} b5 {[%emt 0:03:44]} 12. Na3 {[%emt 0:05:30]} Nb6 {[%emt 0:13:03]} 13. a5 {[%emt 0:07:00]} Nbd7 {[%emt 0:00:22]} 14. b4 {[%emt 0:00:05]} Rc8 {[%emt 0:02:21]} 15. Bd3 {[%emt 0:03:38]} Re8 {[%emt 0:06:42]} 16. Nc2 {[%emt 0:01:43]} Bf8 {[%emt 0:05:05]} 17. Bg5 {[%emt 0:03:16]} h6 {[%emt 0:03:54]} 18. Bd2 {[%emt 0:04:31]} g6 {[%emt 0:00:39]} 19. h3 {[%emt 0:04:33]} Bxd5 {[%emt 0:17:16]} 20. exd5 {[%emt 0:07:20]} e4 21. Bf4 {[%emt 0:00:20]} exd3 {[%emt 0:13:41]} 22. Qxd3 {[%emt 0:00:30]} cxb4 {[%emt 0:08:18]} 23. cxb4 {[%emt 0:07:59]} Rxe1+ {[%emt 0:00:48]} 24. Rxe1 Nxd5 {[%emt 0:00:02]} 25. Qxd5 {[%emt 0:05:51]} Rxc2 {[%emt 0:00:32]} 26. Bxd6 {[%emt 0:11:39]} Nf6 {[%emt 0:08:30]} 27. Qd1 {[%emt 0:01:13]} Rc8 {[%emt 0:00:15]} 28. Bxf8 {[%emt 0:00:26]} Qxf8 29. Qd4 Kg7 {[%emt 0:01:06]} 30. Ne5 {[%emt 0:02:08]} Qe7 {[%emt 0:01:50]} 31. Re3 {[%emt 0:01:15]} Rd8 {[%emt 0:01:08]} 32. Qb2 {[%emt 0:02:02]} Rd1+ {[%emt 0:00:16]} 33. Kh2 {[%emt 0:03:06]} Qd6 34. Qb3 {[%emt 0:10:20]} Qd5 {[%emt 0:00:03]} 35. Qc3 {[%emt 0:06:58]} Qd4 36. Qxd4 Rxd4 {[%emt 0:01:50]} 37. Nc6 {[%emt 0:02:20]} Rc4 {[%emt 0:00:15]} 38. Nb8 {[%emt 0:00:01]} Rxb4 {[%emt 0:02:36]} 39. Nxa6 {[%emt 0:00:21]} Ra4 {[%emt 0:00:13]} 40. Nc7 Rxa5 41. Rb3 {[%emt 0:30:35]} Ne4 {[%emt 0:31:18]} 42. Nxb5 {[%emt 0:02:08]} Nxf2 {[%emt 0:00:40]} 43. Nd6 {[%emt 0:00:01]} Rd5 {[%emt 0:00:00]} 44. Ne8+ {[%emt 0:00:00]} Kf8 {[%emt 0:00:00]} 45. Nf6 {[%emt 0:00:00]} Rd8 {[%emt 0:00:00]} 46. Rb7 {[%emt 0:00:00]} Nd3 {[%emt 0:00:00]} 47. Nd7+ {[%emt 0:00:00]} Kg7 {[%emt 0:00:00]} 48. Kg3 {[%emt 0:00:00]} g5 {[%emt 0:00:00]} 49. Kh2 {[%emt 0:00:00]} h5 50. Kg3 {[%emt 0:00:00]} h4+ {[%emt 0:00:00]} 51. Kh2 Re8 {[%emt 0:00:00]} 52. Rb5 {[%emt 0:00:00]} f6 {[%emt 0:00:00]} 53. Rb6 Nf4 {[%emt 0:02:26]} 54. Nxf6 {[%emt 0:00:00]} Re2 {[%emt 0:00:11]} 55. Kh1 Nxg2 {[%emt 0:01:59]} 56. Nh5+ {[%emt 0:00:00]} Kh7 {[%emt 0:02:40]} 57. Nf6+ {[%emt 0:00:00]} Kg7 {[%emt 0:00:30]} 58. Nh5+ {[%emt 0:00:00]} Kh7 {[%emt 0:00:33]} 59. Nf6+ {[%emt 0:00:00]} Kg7 {[%emt 0:00:30]} 60. Nh5+ 1/2-1/2

[Event "17th Prague Open 2018"]
[Site "Prague"]
[Date "2018.01.14"]
[Round "4"]
[White "Liu, Yi"]
[Black "Adamko, Peter"]
[Result "1/2-1/2"]
[ECO "E11"]
[WhiteElo "2337"]
[BlackElo "2098"]
[Annotator "ChessBase"]
[PlyCount "100"]
[EventDate "2018.??.??"]
[EventType "swiss"]
[EventCountry "CZE"]
[SourceTitle "playchess.com"]
[Source "ChessBase"]
[SourceQuality "1"]
[TimeControl "40/5400+30:1800+30"]

1. d4 {[%emt 0:04:07]} Nf6 {[%emt 0:00:35]} 2. c4 {[%emt 0:01:04]} e6 {[%emt 0:01:24]} 3. Nf3 {[%emt 0:01:34]} Bb4+ {[%emt 0:01:39]} 4. Nbd2 {[%emt 0:00:26]} c5 {[%emt 0:05:18]} 5. a3 {[%emt 0:02:27]} Bxd2+ {[%emt 0:00:35]} 6. Qxd2 {[%emt 0:01:02]} cxd4 {[%emt 0:04:26]} 7. Qxd4 {[%emt 0:04:06]} Nc6 {[%emt 0:05:59]} 8. Qh4 {[%emt 0:01:51]} d5 {[%emt 0:03:54]} 9. b4 {[%emt 0:11:11]} O-O {[%emt 0:06:33]} 10. Bb2 {[%emt 0:01:11]} dxc4 {[%emt 0:06:28]} 11. Qxc4 {[%emt 0:01:22]} Qd5 {[%emt 0:07:50]} 12. e3 {[%emt 0:03:11]} Rd8 {[%emt 0:03:01]} 13. Rc1 {[%emt 0:09:34]} Qxc4 {[%emt 0:14:01]} 14. Bxc4 {[%emt 0:02:13]} Bd7 {[%emt 0:00:25]} 15. O-O {[%emt 0:01:01]} Ne7 {[%emt 0:01:10]} 16. Ne5 {[%emt 0:01:55]} Ba4 {[%emt 0:00:33]} 17. f3 {[%emt 0:03:30]} Nfd5 {[%emt 0:02:54]} 18. Rfe1 {[%emt 0:02:14]} Nb6 {[%emt 0:00:11]} 19. Bf1 {[%emt 0:00:55]} f6 {[%emt 0:04:13]} 20. Nd3 {[%emt 0:01:27]} Nd7 {[%emt 0:01:29]} 21. Nf4 {[%emt 0:03:05]} Kf7 {[%emt 0:00:55]} 22. Bc4 {[%emt 0:04:17]} Nf8 {[%emt 0:00:12]} 23. Nd3 {[%emt 0:11:02]} Nd7 {[%emt 0:01:41]} 24. Ba2 {[%emt 0:07:28]} Rac8 {[%emt 0:05:31]} 25. e4 {[%emt 0:03:24]} Rxc1 {[%emt 0:03:00]} 26. Rxc1 {[%emt 0:00:11]} Rc8 {[%emt 0:00:29]} 27. f4 {[%emt 0:04:21]} Rxc1+ {[%emt 0:02:25]} 28. Bxc1 {[%emt 0:00:48]} g6 {[%emt 0:03:06]} 29. Kf2 {[%emt 0:02:56]} f5 {[%emt 0:02:13]} 30. exf5 {[%emt 0:01:07]} Nxf5 {[%emt 0:01:23]} 31. Bb2 {[%emt 0:04:23]} Ke7 {[%emt 0:01:54]} 32. g4 {[%emt 0:00:43]} Nd6 {[%emt 0:00:17]} 33. Ne5 {[%emt 0:02:15]} Nxe5 {[%emt 0:02:32]} 34. fxe5 {[%emt 0:01:45]} Nb5 {[%emt 0:00:58]} 35. Kg3 {[%emt 0:01:26]} b6 {[%emt 0:00:36]} 36. Kh4 {[%emt 0:01:03]} h6 {[%emt 0:03:47]} 37. Bc1 {[%emt 0:01:06]} Kf7 {[%emt 0:00:21]} 38. Bxh6 Nxa3 {[%emt 0:00:14]} 39. Bd2 {[%emt 0:00:46]} Bc2 {[%emt 0:00:56]} 40. Kg5 {[%emt 0:00:26]} Nb5 {[%emt 0:33:35]} 41. h4 {[%emt 0:01:20]} Nd4 {[%emt 0:00:00]} 42. Kf4 {[%emt 0:00:22]} Bd1 {[%emt 0:00:00]} 43. Bb1 {[%emt 0:01:56]} Nf3 {[%emt 0:00:00]} 44. Be3 {[%emt 0:01:36]} Nxh4 {[%emt 0:00:00]} 45. Be4 {[%emt 0:00:10]} Be2 {[%emt 0:00:00]} 46. Bf2 {[%emt 0:03:11]} g5+ {[%emt 0:00:00]} 47. Kxg5 {[%emt 0:00:05]} Nf3+ {[%emt 0:00:00]} 48. Kf4 {[%emt 0:02:10]} Nd2 {[%emt 0:00:00]} 49. Bc2 {[%emt 0:01:22]} Nc4 {[%emt 0:00:00]} 50. Be1 {[%emt 0:02:02]} a5 {[%emt 0:00:00]} 1/2-1/2

[Event "17th Prague Open 2018"]
[Site "Prague"]
[Date "2018.01.14"]
[Round "4"]
[White "Schippers, Maurice"]
[Black "Luukkonen, Tommi"]
[Result "1/2-1/2"]
[ECO "B92"]
[WhiteElo "2309"]
[BlackElo "2331"]
[Annotator "ChessBase"]
[PlyCount "105"]
[EventDate "2018.??.??"]
[EventType "swiss"]
[EventCountry "CZE"]
[SourceTitle "playchess.com"]
[Source "ChessBase"]
[SourceQuality "1"]
[TimeControl "40/5400+30:1800+30"]

1. e4 {[%emt 0:00:00]} c5 {[%emt 0:00:38]} 2. Nf3 {[%emt 0:00:00]} d6 {[%emt 0:00:08]} 3. d4 {[%emt 0:00:00]} cxd4 {[%emt 0:00:05]} 4. Nxd4 {[%emt 0:00:00]} Nf6 {[%emt 0:00:05]} 5. Nc3 {[%emt 0:00:08]} a6 {[%emt 0:00:03]} 6. Be2 {[%emt 0:00:34]} e5 {[%emt 0:00:21]} 7. Nb3 {[%emt 0:01:00]} Be7 {[%emt 0:00:05]} 8. O-O {[%emt 0:01:49]} O-O {[%emt 0:02:02]} 9. a4 {[%emt 0:02:23]} b6 {[%emt 0:03:52]} 10. Be3 {[%emt 0:06:11]} Bb7 {[%emt 0:03:33]} 11. Bf3 {[%emt 0:04:15]} Nbd7 {[%emt 0:00:25]} 12. Nd5 {[%emt 0:02:18]} Rc8 {[%emt 0:01:54]} 13. Rc1 {[%emt 0:12:54]} Rc4 {[%emt 0:03:26]} 14. Nd2 {[%emt 0:05:49]} Rxa4 {[%emt 0:06:04]} 15. b3 {[%emt 0:02:05]} Nxd5 {[%emt 0:02:27]} 16. exd5 {[%emt 0:01:05]} Ra2 {[%emt 0:05:29]} 17. c4 {[%emt 0:04:52]} b5 {[%emt 0:04:17]} 18. Ne4 {[%emt 0:06:05]} bxc4 {[%emt 0:04:58]} 19. bxc4 {[%emt 0:00:15]} Rb2 {[%emt 0:00:16]} 20. Qa4 {[%emt 0:06:19]} f5 {[%emt 0:04:36]} 21. Qa3 {[%emt 0:04:31]} fxe4 {[%emt 0:00:11]} 22. Qxb2 {[%emt 0:00:18]} exf3 {[%emt 0:00:14]} 23. Qxb7 {[%emt 0:01:05]} Qe8 {[%emt 0:06:38]} 24. gxf3 {[%emt 0:03:40]} Qg6+ {[%emt 0:04:09]} 25. Kh1 {[%emt 0:00:06]} Qf5 {[%emt 0:00:03]} 26. Rg1 {[%emt 0:02:13]} h5 {[%emt 0:00:25]} 27. Qb3 {[%emt 0:06:38]} Qxf3+ {[%emt 0:03:18]} 28. Rg2 {[%emt 0:00:04]} Nf6 {[%emt 0:06:08]} 29. Qd1 {[%emt 0:04:16]} Qf5 {[%emt 0:00:37]} 30. f3 {[%emt 0:03:49]} Nh7 {[%emt 0:04:50]} 31. c5 {[%emt 0:03:27]} dxc5 {[%emt 0:02:20]} 32. d6 {[%emt 0:00:25]} Bd8 {[%emt 0:03:54]} 33. Rxc5 {[%emt 0:02:20]} Nf6 {[%emt 0:05:40]} 34. Rg5 {[%emt 0:02:42]} Qh3 {[%emt 0:00:31]} 35. Rg3 {[%emt 0:01:53]} Qe6 {[%emt 0:01:32]} 36. Bg5 {[%emt 0:02:44]} h4 {[%emt 0:01:38]} 37. Rg1 {[%emt 0:01:59]} Bb6 {[%emt 0:01:41]} 38. Bxf6 {[%emt 0:01:32]} Qxf6 {[%emt 0:01:30]} 39. Qb3+ {[%emt 0:01:39]} Kh8 {[%emt 0:00:36]} 40. Rxe5 {[%emt 0:05:10]} Qxe5 {[%emt 0:30:09]} 41. Qxb6 {[%emt 0:30:05]} Qd5 {[%emt 0:00:35]} 42. Qf2 {[%emt 0:00:00]} Rxf3 {[%emt 0:00:00]} 43. Qg2 {[%emt 0:00:00]} Rd3 {[%emt 0:00:00]} 44. Qxd5 {[%emt 0:00:00]} Rxd5 {[%emt 0:00:00]} 45. Rg4 {[%emt 0:00:00]} g5 {[%emt 0:00:00]} 46. d7 {[%emt 0:00:00]} h3 {[%emt 0:00:00]} 47. Rxg5 {[%emt 0:00:00]} Rd1+ {[%emt 0:00:00]} 48. Rg1 {[%emt 0:00:00]} Rxd7 {[%emt 0:00:00]} 49. Ra1 {[%emt 0:00:00]} Kg8 {[%emt 0:00:00]} 50. Kg1 {[%emt 0:00:00]} Rd6 {[%emt 0:00:00]} 51. Ra3 {[%emt 0:00:00]} Rh6 {[%emt 0:00:00]} 52. Kf2 {[%emt 0:00:00]} Kf7 {[%emt 0:00:00]} 53. Kg3 {[%emt 0:00:00]} 1/2-1/2

[Event "17th Prague Open 2018"]
[Site "Prague"]
[Date "2018.01.14"]
[Round "4"]
[White "Stoyanov, Tsvetan"]
[Black "Akshat, Khamparia"]
[Result "1/2-1/2"]
[ECO "B78"]
[WhiteElo "2242"]
[BlackElo "2381"]
[Annotator "ChessBase"]
[PlyCount "77"]
[EventDate "2018.??.??"]
[EventType "swiss"]
[EventCountry "CZE"]
[SourceTitle "playchess.com"]
[Source "ChessBase"]
[SourceQuality "1"]
[TimeControl "40/5400+30:1800+30"]

1. e4 {[%emt 0:00:00]} c5 {[%emt 0:02:31]} 2. Nf3 {[%emt 0:00:07]} d6 {[%emt 0:00:06]} 3. d4 {[%emt 0:00:04]} cxd4 {[%emt 0:00:01]} 4. Nxd4 {[%emt 0:00:07]} Nf6 {[%emt 0:00:01]} 5. Nc3 {[%emt 0:00:09]} g6 {[%emt 0:00:03]} 6. Be3 {[%emt 0:00:09]} Bg7 {[%emt 0:00:04]} 7. f3 {[%emt 0:00:17]} O-O {[%emt 0:00:05]} 8. Qd2 {[%emt 0:00:12]} Nc6 {[%emt 0:00:03]} 9. Bc4 {[%emt 0:00:26]} Bd7 {[%emt 0:00:04]} 10. O-O-O {[%emt 0:00:19]} Rb8 {[%emt 0:00:02]} 11. Bb3 {[%emt 0:08:58]} Na5 {[%emt 0:02:18]} 12. Bh6 {[%emt 0:06:55]} Bxh6 {[%emt 0:00:18]} 13. Qxh6 {[%emt 0:00:11]} b5 {[%emt 0:00:01]} 14. h4 {[%emt 0:05:38]} e5 {[%emt 0:00:14]} 15. Nde2 {[%emt 0:04:09]} b4 {[%emt 0:00:06]} 16. Nd5 {[%emt 0:06:20]} Nxb3+ {[%emt 0:00:06]} 17. axb3 {[%emt 0:04:23]} Nxd5 {[%emt 0:00:04]} 18. Rxd5 {[%emt 0:00:30]} Be6 {[%emt 0:06:39]} 19. h5 {[%emt 0:33:32]} g5 {[%emt 0:01:48]} 20. Rxd6 {[%emt 0:05:39]} Qe7 {[%emt 0:00:06]} 21. Ng3 {[%emt 0:10:02]} f6 {[%emt 0:07:03]} 22. Rhd1 {[%emt 0:01:12]} Rb6 {[%emt 0:13:44]} 23. R6d3 {[%emt 0:03:28]} Rc6 {[%emt 0:04:09]} 24. Nf5 {[%emt 0:02:06]} Bxf5 {[%emt 0:05:13]} 25. exf5 {[%emt 0:01:20]} Qc7 {[%emt 0:00:20]} 26. Kb1 {[%emt 0:01:18]} Rxc2 {[%emt 0:01:08]} 27. Qxf8+ {[%emt 0:00:13]} Kxf8 {[%emt 0:00:07]} 28. Rd8+ {[%emt 0:00:02]} Ke7 {[%emt 0:01:12]} 29. R1d7+ {[%emt 0:00:11]} Qxd7 {[%emt 0:00:38]} 30. Rxd7+ {[%emt 0:00:02]} Kxd7 {[%emt 0:00:06]} 31. Kxc2 {[%emt 0:00:06]} Kd6 {[%emt 0:02:43]} 32. Kd3 {[%emt 0:00:11]} Kd5 {[%emt 0:00:06]} 33. g3 {[%emt 0:01:20]} h6 {[%emt 0:00:21]} 34. Ke3 {[%emt 0:00:42]} a5 {[%emt 0:00:10]} 35. g4 {[%emt 0:00:52]} Kc5 {[%emt 0:01:06]} 36. Ke4 {[%emt 0:00:12]} Kc6 {[%emt 0:00:32]} 37. Ke3 {[%emt 0:00:38]} Kb5 {[%emt 0:00:26]} 38. Kd3 {[%emt 0:00:05]} Kc5 {[%emt 0:00:11]} 39. Ke4 {[%emt 0:00:07]} 1/2-1/2

[Event "17th Prague Open 2018"]
[Site "Prague"]
[Date "2018.01.14"]
[Round "4"]
[White "Ustinov, Alexey"]
[Black "Melamed, Tatjana"]
[Result "1/2-1/2"]
[ECO "E73"]
[WhiteElo "2240"]
[BlackElo "2347"]
[Annotator "ChessBase"]
[PlyCount "34"]
[EventDate "2018.??.??"]
[EventType "swiss"]
[EventCountry "CZE"]
[SourceTitle "playchess.com"]
[Source "ChessBase"]
[SourceQuality "1"]
[TimeControl "40/5400+30:1800+30"]

1. c4 {[%emt 0:00:00]} Nf6 {[%emt 0:00:25]} 2. Nc3 {[%emt 0:00:00]} g6 {[%emt 0:01:08]} 3. d4 {[%emt 0:00:13]} Bg7 {[%emt 0:00:10]} 4. e4 {[%emt 0:00:15]} d6 {[%emt 0:00:05]} 5. Be2 {[%emt 0:01:49]} O-O {[%emt 0:00:43]} 6. Be3 {[%emt 0:00:13]} e5 {[%emt 0:02:03]} 7. d5 {[%emt 0:02:07]} Na6 {[%emt 0:02:18]} 8. g4 {[%emt 0:02:17]} Nc5 {[%emt 0:00:51]} 9. f3 {[%emt 0:00:21]} c6 {[%emt 0:05:49]} 10. h4 {[%emt 0:11:00]} cxd5 {[%emt 0:07:51]} 11. cxd5 {[%emt 0:00:30]} Qb6 {[%emt 0:02:02]} 12. Qd2 {[%emt 0:06:04]} Bd7 {[%emt 0:06:51]} 13. h5 {[%emt 0:15:44]} Qa5 {[%emt 0:04:31]} 14. h6 {[%emt 0:06:08]} Bh8 {[%emt 0:00:25]} 15. Nb5 {[%emt 0:23:48]} Qxd2+ {[%emt 0:12:30]} 16. Bxd2 {[%emt 0:00:04]} Ne8 {[%emt 0:00:25]} 17. Nc3 {[%emt 0:03:37]} Bf6 {[%emt 0:03:45]} 1/2-1/2

[Event "17th Prague Open 2018"]
[Site "Prague"]
[Date "2018.01.14"]
[Round "4"]
[White "Raahul V S"]
[Black "Thakur, Akash"]
[Result "1-0"]
[ECO "A22"]
[WhiteElo "2205"]
[BlackElo "2338"]
[Annotator "ChessBase"]
[PlyCount "53"]
[EventDate "2018.??.??"]
[EventType "swiss"]
[EventCountry "CZE"]
[SourceTitle "playchess.com"]
[Source "ChessBase"]
[SourceQuality "1"]
[TimeControl "40/5400+30:1800+30"]

1. c4 {[%emt 0:00:00]} Nf6 {[%emt 0:00:36]} 2. Nc3 {[%emt 0:00:37]} e5 {[%emt 0:00:10]} 3. g3 {[%emt 0:00:30]} d6 {[%emt 0:00:11]} 4. Nf3 {[%emt 0:00:20]} Nbd7 {[%emt 0:00:38]} 5. d4 {[%emt 0:00:32]} Be7 {[%emt 0:00:29]} 6. Bg2 {[%emt 0:00:29]} O-O {[%emt 0:00:42]} 7. O-O {[%emt 0:00:18]} c6 {[%emt 0:00:33]} 8. Qc2 {[%emt 0:00:58]} Re8 {[%emt 0:01:33]} 9. b3 {[%emt 0:06:47]} Qc7 {[%emt 0:02:59]} 10. Bb2 {[%emt 0:02:01]} Bf8 {[%emt 0:00:47]} 11. Rac1 {[%emt 0:01:34]} a6 {[%emt 0:01:44]} 12. Rfd1 {[%emt 0:09:22]} Qb8 {[%emt 0:06:41]} 13. e3 {[%emt 0:12:50]} e4 {[%emt 0:21:44]} 14. Ng5 {[%emt 0:02:41]} d5 {[%emt 0:01:20]} 15. cxd5 {[%emt 0:01:14]} cxd5 {[%emt 0:00:41]} 16. Nxd5 {[%emt 0:01:21]} Nxd5 {[%emt 0:02:10]} 17. Bxe4 {[%emt 0:00:55]} Rxe4 {[%emt 0:01:01]} 18. Nxe4 {[%emt 0:00:37]} Be7 {[%emt 0:09:52]} 19. Nc3 {[%emt 0:08:51]} Nb4 {[%emt 0:11:16]} 20. Qe4 {[%emt 0:06:06]} Qd6 {[%emt 0:04:58]} 21. d5 {[%emt 0:08:10]} Ne5 {[%emt 0:12:24]} 22. Ne2 {[%emt 0:06:40]} Bf6 {[%emt 0:05:18]} 23. Bxe5 {[%emt 0:01:56]} Bxe5 {[%emt 0:00:59]} 24. a3 {[%emt 0:00:35]} Na2 {[%emt 0:01:48]} 25. Rc2 {[%emt 0:01:14]} f5 {[%emt 0:04:11]} 26. Qc4 {[%emt 0:01:09]} Qxa3 {[%emt 0:02:52]} 27. d6+ {[%emt 0:00:29]} 1-0

[Event "17th Prague Open 2018"]
[Site "Prague"]
[Date "2018.01.14"]
[Round "4"]
[White "Parnali, S Dharia"]
[Black "Mishuchkov, Nikolai M"]
[Result "1/2-1/2"]
[ECO "E04"]
[WhiteElo "2082"]
[BlackElo "2303"]
[Annotator "ChessBase"]
[PlyCount "114"]
[EventDate "2018.??.??"]
[EventType "swiss"]
[EventCountry "CZE"]
[SourceTitle "playchess.com"]
[Source "ChessBase"]
[SourceQuality "1"]
[TimeControl "40/5400+30:1800+30"]

1. d4 {[%emt 0:00:00]} Nf6 {[%emt 0:00:11]} 2. c4 {[%emt 0:00:00]} e6 {[%emt 0:00:05]} 3. g3 {[%emt 0:00:00]} d5 {[%emt 0:00:14]} 4. Nf3 {[%emt 0:00:00]} dxc4 {[%emt 0:00:34]} 5. Bg2 {[%emt 0:00:51]} Bd7 {[%emt 0:00:25]} 6. Ne5 {[%emt 0:03:04]} Bc6 {[%emt 0:00:09]} 7. Nxc6 {[%emt 0:00:39]} Nxc6 {[%emt 0:00:05]} 8. O-O {[%emt 0:06:46]} Qd7 {[%emt 0:00:28]} 9. Be3 {[%emt 0:05:47]} Nd5 {[%emt 0:19:01]} 10. Nd2 {[%emt 0:01:47]} Na5 {[%emt 0:03:10]} 11. Qc2 {[%emt 0:06:00]} Qb5 {[%emt 0:14:37]} 12. a4 {[%emt 0:05:41]} Qb4 {[%emt 0:01:02]} 13. Rfc1 {[%emt 0:03:16]} Nxe3 {[%emt 0:04:20]} 14. fxe3 {[%emt 0:00:08]} Be7 {[%emt 0:05:51]} 15. Ra3 {[%emt 0:04:46]} O-O {[%emt 0:04:37]} 16. Rc3 {[%emt 0:01:16]} Bg5 {[%emt 0:01:36]} 17. Rd1 {[%emt 0:06:31]} c6 {[%emt 0:03:41]} 18. Kf2 {[%emt 0:02:19]} Qe7 {[%emt 0:03:08]} 19. Nxc4 {[%emt 0:02:31]} Nxc4 {[%emt 0:00:18]} 20. Rxc4 {[%emt 0:00:01]} Qf6+ {[%emt 0:00:16]} 21. Bf3 {[%emt 0:00:05]} Qh6 {[%emt 0:00:36]} 22. Kg2 {[%emt 0:07:15]} Bxe3 {[%emt 0:00:14]} 23. Qb3 {[%emt 0:03:29]} Rad8 {[%emt 0:01:22]} 24. Rd3 {[%emt 0:02:43]} b5 {[%emt 0:01:11]} 25. axb5 {[%emt 0:00:47]} cxb5 {[%emt 0:00:04]} 26. Qxb5 {[%emt 0:01:00]} Rb8 {[%emt 0:02:30]} 27. Qe5 {[%emt 0:05:17]} Bg5 {[%emt 0:00:14]} 28. b3 {[%emt 0:00:34]} Bd2 {[%emt 0:10:15]} 29. Rc6 {[%emt 0:00:52]} Qg5 {[%emt 0:01:17]} 30. Qxg5 {[%emt 0:01:00]} Bxg5 {[%emt 0:00:06]} 31. Ra6 {[%emt 0:00:14]} Rfd8 {[%emt 0:10:03]} 32. Rxa7 {[%emt 0:00:58]} Rb4 {[%emt 0:01:38]} 33. Ra8 {[%emt 0:03:31]} Kf8 {[%emt 0:02:36]} 34. Rxd8+ {[%emt 0:00:35]} Bxd8 {[%emt 0:00:05]} 35. Bc6 {[%emt 0:00:43]} Bb6 {[%emt 0:01:33]} 36. d5 {[%emt 0:01:04]} exd5 {[%emt 0:00:14]} 37. Bxd5 {[%emt 0:00:30]} Rd4 {[%emt 0:00:06]} 38. Rxd4 {[%emt 0:00:46]} Bxd4 {[%emt 0:00:06]} 39. Kf3 {[%emt 0:00:48]} Ke7 {[%emt 0:02:10]} 40. Ke4 {[%emt 0:00:35]} Bc5 {[%emt 0:31:08]} 41. Bc4 {[%emt 0:30:14]} Bd6 {[%emt 0:01:38]} 42. Kd5 {[%emt 0:01:58]} h5 {[%emt 0:01:56]} 43. e4 {[%emt 0:01:20]} f6 {[%emt 0:00:00]} 44. Be2 {[%emt 0:00:00]} h4 {[%emt 0:00:00]} 45. gxh4 {[%emt 0:00:00]} Bxh2 {[%emt 0:00:00]} 46. Kc6 {[%emt 0:00:00]} Bd6 {[%emt 0:00:00]} 47. h5 {[%emt 0:00:00]} Ba3 {[%emt 0:00:00]} 48. Bg4 {[%emt 0:00:00]} Kd8 {[%emt 0:00:00]} 49. Bf5 {[%emt 0:00:00]} Ke7 {[%emt 0:00:00]} 50. Kd5 {[%emt 0:00:00]} Bd6 {[%emt 0:00:00]} 51. Kc4 {[%emt 0:00:00]} Ba3 {[%emt 0:00:00]} 52. b4 {[%emt 0:00:00]} Kd6 {[%emt 0:00:00]} 53. Kb5 {[%emt 0:00:00]} Kc7 {[%emt 0:00:00]} 54. Kc5 {[%emt 0:00:00]} Kb7 {[%emt 0:00:00]} 55. Kc4 {[%emt 0:00:00]} Kb6 {[%emt 0:00:00]} 56. Bd7 {[%emt 0:00:00]} Bc1 {[%emt 0:00:00]} 57. Kd5 {[%emt 0:00:00]} Bh6 {[%emt 0:00:00]} 1/2-1/2

[Event "17th Prague Open 2018"]
[Site "Prague"]
[Date "2018.01.15"]
[Round "5"]
[White "Kulkarni Bhakti"]
[Black "Lindbol, Aleksander"]
[Result "1-0"]
[ECO "B10"]
[WhiteElo "2306"]
[BlackElo "2146"]
[Annotator "RC"]
[PlyCount "45"]
[EventDate "2018.??.??"]
[EventType "swiss"]
[EventCountry "CZE"]
[SourceTitle "playchess.com"]
[Source "ChessBase"]
[SourceQuality "1"]
[TimeControl "40/5400+30:1800+30"]

1. e4 {[%emt 0:02:34]} c6 {[%emt 0:00:23]} 2. c4 {[%emt 0:00:55]} d5 {[%emt 0:01:16]} 3. exd5 {[%emt 0:00:42]} cxd5 {[%emt 0:00:10]} 4. cxd5 {[%emt 0:00:23]} Nf6 {[%emt 0:02:08]} 5. Qa4+ {[%emt 0:00:59]} Nbd7 {[%emt 0:04:06]} 6. Nc3 {[%emt 0:00:36]} g6 {[%emt 0:02:40]} 7. Nf3 {[%emt 0:02:18]} Bg7 {[%emt 0:03:57]} 8. Bc4 {[%emt 0:00:06]} O-O {[%emt 0:03:35]} 9. d3 {[%emt 0:00:46]} a6 {[%emt 0:05:10]} 10. Qa3 {[%emt 0:00:31]} Nb6 {[%emt 0:09:20]} 11. Qb3 {[%emt 0:00:19]} Bf5 {[%emt 0:03:47]} 12. O-O {[%emt 0:04:16]} Rc8 {[%emt 0:08:38]} 13. Be3 {[%emt 0:07:01]} Nxc4 {[%emt 0:08:56]} 14. dxc4 {[%emt 0:00:04]} Bd3 {[%emt 0:00:10]} 15. Rfd1 {[%emt 0:01:00]} Bxc4 {[%emt 0:00:13]} 16. Qxb7 {[%emt 0:01:03]} Qd6 {[%emt 0:19:29]} 17. Qb6 {[%emt 0:23:25]} Nd7 {[%emt 0:07:04]} 18. Qxd6 {[%emt 0:00:47]} exd6 {[%emt 0:00:01]} 19. Bd4 {[%emt 0:02:41]} Rfe8 {[%emt 0:00:12]} 20. Bxg7 {[%emt 0:01:45]} Kxg7 {[%emt 0:00:05]} 21. Rd4 {[%emt 0:01:16]} Be2 {[%emt 0:01:50]} 22. Nd2 {[%emt 0:01:18]} a5 {[%emt 0:00:58]} 23. Nde4 {[%emt 0:00:23]} 1-0